{"text_format":"1","workbook":"xlsx","n_sheets":7,"sheets":["Общий жур. отказы от поставок","Причина отказа","Продукция","Контрагент","Проект","Позиция","Завод"],"not_rendered":{"charts":0,"images":0,"macros":1,"external_links":2,"defined_names":4,"comments":0,"pivot_tables":0},"unopened":[],"bounds":{"document_bytes":16777216,"sheet_cells":100000,"rows_first":2000,"rows_last":500,"rows_between":2000,"halvings":0,"cell_chars":16384,"cell_head_chars":4096},"cells_cut":0,"cells_raw":0,"read":"whole","date_system":"1900"}

{"sheet":"Общий жур. отказы от поставок","index":0,"n_rows":68,"n_cols":14,"rows_kept":68,"cut":false,"hidden":false,"merged":[[7,1,7,13]]}
[]
[null,null,null,null,null,null,null,"Кол-во, м³ (ЗАКАЗ):",{"$f":"SUBTOTAL(109,$I$10:$I$15682)","v":516}]
[null,null,null,null,null,null,null,"Наш отказ",{"$f":"SUMPRODUCT(SUBTOTAL(109,INDIRECT(\"I\"&ROW($I$10:$I$15682)))*($J$10:$J$15682=H3))","v":68}]
[null,null,null,null,null,null,null,"Отказ клиента",{"$f":"SUMPRODUCT(SUBTOTAL(109,INDIRECT(\"I\"&ROW($I$10:$I$15682)))*($J$10:$J$15682=H4))","v":448}]
[null,null,null,null,null,null,null,"Перенос объема",{"$f":"SUMPRODUCT(SUBTOTAL(109,INDIRECT(\"I\"&ROW($I$10:$I$15682)))*($J$10:$J$15682=H5))","v":0}]
[null,null,null,null,null,null,null,"Отгруженно всего:",{"$f":"SUBTOTAL(109,$N$10:$N$15682)","v":85.5}]
[]
[null,"ОБЩИЙ ЖУРНАЛ ОТКАЗОВ ОТ ПОСТАВОК"]
[null,"Дата","Завод","Клиент","Проект","Объект","Расстояние, км","Продукция","Кол-во, м³ (Заказ)","Причина отказа","Отгруженно всего сут/м³","кол-во работающих АБС, шт","Комментарий","Промежуточный итог"]
[null,"2016-01-05","РБУ-1 Дрожжино","ФМ Компания ",null,"Симферопольское шоссе",null,"Бетон В20",50,"Отказ клиента",4,3,"Отказ клиента, не готовы.",{"$f":"IF(Таблица13[[#This Row],[Дата]]=\"\",\"\",IF(B9<>Таблица13[[#This Row],[Дата]],Таблица13[[#This Row],[Отгруженно всего сут/м³]],\"\"))","v":4}]
[null,"2016-01-08","РБУ-1 Дрожжино","МСУ Град-1",null,"Боброво 22",null,"Раствор М200",2,"Отказ клиента",0,3,"Отказ клиента, не готовы.",{"$f":"IF(Таблица13[[#This Row],[Дата]]=\"\",\"\",IF(B10<>Таблица13[[#This Row],[Дата]],Таблица13[[#This Row],[Отгруженно всего сут/м³]],\"\"))","v":0}]
[null,"2016-01-08","РБУ-1 Дрожжино","МСУ Град-1",null,"Боброво 23",null,"Раствор М200",2,"Отказ клиента",0,3,"Отказ клиента, не готовы.",{"$f":"IF(Таблица13[[#This Row],[Дата]]=\"\",\"\",IF(B11<>Таблица13[[#This Row],[Дата]],Таблица13[[#This Row],[Отгруженно всего сут/м³]],\"\"))","v":""}]
[null,"2016-01-08","РБУ-1 Дрожжино","МСУ Град-1",null,"Боброво 26",null,"Бетон В30",15,"Отказ клиента",0,3,"Отказ клиента, не готовы.",{"$f":"IF(Таблица13[[#This Row],[Дата]]=\"\",\"\",IF(B12<>Таблица13[[#This Row],[Дата]],Таблица13[[#This Row],[Отгруженно всего сут/м³]],\"\"))","v":""}]
[null,"2016-01-08","РБУ-1 Дрожжино","МСУ Град-1",null,"Боброво 29",null,"Раствор М200",5,"Отказ клиента",0,3,"Отказ клиента, не готовы.",{"$f":"IF(Таблица13[[#This Row],[Дата]]=\"\",\"\",IF(B13<>Таблица13[[#This Row],[Дата]],Таблица13[[#This Row],[Отгруженно всего сут/м³]],\"\"))","v":""}]
[null,"2016-01-08","РБУ-1 Дрожжино","МСУ 4",null,"Боброво коллектор",null,"Бетон В25",10,"Отказ клиента",0,3,"Отказ клиента, не готовы.",{"$f":"IF(Таблица13[[#This Row],[Дата]]=\"\",\"\",IF(B14<>Таблица13[[#This Row],[Дата]],Таблица13[[#This Row],[Отгруженно всего сут/м³]],\"\"))","v":""}]
[null,"2016-01-08","РБУ-1 Дрожжино","Компания ФМ",null,"Симферопольское ш.",null,"Бетон В20",50,"Отказ клиента",0,3,"Отказ клиента, не готовы.",{"$f":"IF(Таблица13[[#This Row],[Дата]]=\"\",\"\",IF(B15<>Таблица13[[#This Row],[Дата]],Таблица13[[#This Row],[Отгруженно всего сут/м³]],\"\"))","v":""}]
[null,"2016-01-09","РБУ-1 Дрожжино","МСУ Град-1",null,"Боброво 22",null,"Раствор М200",2,"Наш отказ",0,3,"Наш отказ,ремонт РБУ",{"$f":"IF(Таблица13[[#This Row],[Дата]]=\"\",\"\",IF(B16<>Таблица13[[#This Row],[Дата]],Таблица13[[#This Row],[Отгруженно всего сут/м³]],\"\"))","v":0}]
[null,"2016-01-09","РБУ-1 Дрожжино","МСУ Град-1",null,"Боброво 23",null,"Раствор М200",2,"Наш отказ",0,3,"Наш отказ,ремонт РБУ",{"$f":"IF(Таблица13[[#This Row],[Дата]]=\"\",\"\",IF(B17<>Таблица13[[#This Row],[Дата]],Таблица13[[#This Row],[Отгруженно всего сут/м³]],\"\"))","v":""}]
[null,"2016-01-09","РБУ-1 Дрожжино","МСУ Град-1",null,"Боброво 26",null,"Бетон В30",15,"Наш отказ",0,3,"Наш отказ,ремонт РБУ",{"$f":"IF(Таблица13[[#This Row],[Дата]]=\"\",\"\",IF(B18<>Таблица13[[#This Row],[Дата]],Таблица13[[#This Row],[Отгруженно всего сут/м³]],\"\"))","v":""}]
[null,"2016-01-09","РБУ-1 Дрожжино","МСУ Град-1",null,"Боброво 29",null,"Раствор М200",5,"Наш отказ",0,3,"Наш отказ,ремонт РБУ",{"$f":"IF(Таблица13[[#This Row],[Дата]]=\"\",\"\",IF(B19<>Таблица13[[#This Row],[Дата]],Таблица13[[#This Row],[Отгруженно всего сут/м³]],\"\"))","v":""}]
[null,"2016-01-09","РБУ-1 Дрожжино","МСУ 4",null,"Боброво коллектор",null,"Бетон В25",10,"Наш отказ",0,3,"Наш отказ,ремонт РБУ",{"$f":"IF(Таблица13[[#This Row],[Дата]]=\"\",\"\",IF(B20<>Таблица13[[#This Row],[Дата]],Таблица13[[#This Row],[Отгруженно всего сут/м³]],\"\"))","v":""}]
[null,"2016-01-10","РБУ-1 Дрожжино","МСУ Град-1",null,"Боброво 22",null,"Раствор М200",2,"Наш отказ",0,3,"Наш отказ,ремонт РБУ",{"$f":"IF(Таблица13[[#This Row],[Дата]]=\"\",\"\",IF(B21<>Таблица13[[#This Row],[Дата]],Таблица13[[#This Row],[Отгруженно всего сут/м³]],\"\"))","v":0}]
[null,"2016-01-10","РБУ-1 Дрожжино","МСУ Град-1",null,"Боброво 23",null,"Раствор М200",2,"Наш отказ",0,3,"Наш отказ,ремонт РБУ",{"$f":"IF(Таблица13[[#This Row],[Дата]]=\"\",\"\",IF(B22<>Таблица13[[#This Row],[Дата]],Таблица13[[#This Row],[Отгруженно всего сут/м³]],\"\"))","v":""}]
[null,"2016-01-10","РБУ-1 Дрожжино","МСУ Град-1",null,"Боброво 26",null,"Бетон В30",15,"Наш отказ",0,3,"Наш отказ,ремонт РБУ",{"$f":"IF(Таблица13[[#This Row],[Дата]]=\"\",\"\",IF(B23<>Таблица13[[#This Row],[Дата]],Таблица13[[#This Row],[Отгруженно всего сут/м³]],\"\"))","v":""}]
[null,"2016-01-10","РБУ-1 Дрожжино","МСУ Град-1",null,"Боброво 29",null,"Раствор М200",5,"Наш отказ",0,3,"Наш отказ,ремонт РБУ",{"$f":"IF(Таблица13[[#This Row],[Дата]]=\"\",\"\",IF(B24<>Таблица13[[#This Row],[Дата]],Таблица13[[#This Row],[Отгруженно всего сут/м³]],\"\"))","v":""}]
[null,"2016-01-10","РБУ-1 Дрожжино","МСУ 4",null,"Боброво коллектор",null,"Бетон В25",10,"Наш отказ",0,3,"Наш отказ,ремонт РБУ",{"$f":"IF(Таблица13[[#This Row],[Дата]]=\"\",\"\",IF(B25<>Таблица13[[#This Row],[Дата]],Таблица13[[#This Row],[Отгруженно всего сут/м³]],\"\"))","v":""}]
[null,"2016-01-11","РБУ-1 Дрожжино","МСУ Град-1",null,"Боброво 23",null,"Раствор М200",2,"Отказ клиента",44.5,3,"Отказ клиента, не готовы.",{"$f":"IF(Таблица13[[#This Row],[Дата]]=\"\",\"\",IF(B26<>Таблица13[[#This Row],[Дата]],Таблица13[[#This Row],[Отгруженно всего сут/м³]],\"\"))","v":44.5}]
[null,"2016-01-11","РБУ-1 Дрожжино","МСУ Град-1",null,"Боброво 29",null,"Раствор М200",5,"Отказ клиента",44.5,3,"Отказ клиента, не готовы.",{"$f":"IF(Таблица13[[#This Row],[Дата]]=\"\",\"\",IF(B27<>Таблица13[[#This Row],[Дата]],Таблица13[[#This Row],[Отгруженно всего сут/м³]],\"\"))","v":""}]
[null,"2016-01-11","РБУ-1 Дрожжино","МСУ 4",null,"Боброво коллектор",null,"Бетон В25",10,"Отказ клиента",44.5,3,"Отказ клиента, не готовы.",{"$f":"IF(Таблица13[[#This Row],[Дата]]=\"\",\"\",IF(B28<>Таблица13[[#This Row],[Дата]],Таблица13[[#This Row],[Отгруженно всего сут/м³]],\"\"))","v":""}]
[null,"2016-01-12","РБУ-1 Дрожжино","МСУ Град-1",null,"Боброво 26",null,"Бетон В30",15,"Отказ клиента",13.5,3,"Отказ клиента, не готовы.",{"$f":"IF(Таблица13[[#This Row],[Дата]]=\"\",\"\",IF(B29<>Таблица13[[#This Row],[Дата]],Таблица13[[#This Row],[Отгруженно всего сут/м³]],\"\"))","v":13.5}]
[null,"2016-01-12","РБУ-1 Дрожжино","МСУ Град-1",null,"Боброво 22",null,"Бетон В7,5",1,"Отказ клиента",13.5,3,"Отказ клиента, не готовы.",{"$f":"IF(Таблица13[[#This Row],[Дата]]=\"\",\"\",IF(B30<>Таблица13[[#This Row],[Дата]],Таблица13[[#This Row],[Отгруженно всего сут/м³]],\"\"))","v":""}]
[null,"2016-01-12","РБУ-1 Дрожжино","МСУ 2",null,"Бутово Парк 57",null,"Раствор М100",1,"Отказ клиента",13.5,3,"Отказ клиента, не готовы.",{"$f":"IF(Таблица13[[#This Row],[Дата]]=\"\",\"\",IF(B31<>Таблица13[[#This Row],[Дата]],Таблица13[[#This Row],[Отгруженно всего сут/м³]],\"\"))","v":""}]
[null,"2016-01-12","РБУ-1 Дрожжино","МСУ 2",null,"Бутово Парк 22",null,"Раствор М100",4,"Отказ клиента",13.5,3,"Отказ клиента, не готовы.",{"$f":"IF(Таблица13[[#This Row],[Дата]]=\"\",\"\",IF(B32<>Таблица13[[#This Row],[Дата]],Таблица13[[#This Row],[Отгруженно всего сут/м³]],\"\"))","v":""}]
[null,"2016-01-12","РБУ-1 Дрожжино","СМУ 1",null,"Щербинка,Овражная п.4",null,"Раствор М100",3,"Отказ клиента",13.5,3,"Отказ клиента, не готовы.",{"$f":"IF(Таблица13[[#This Row],[Дата]]=\"\",\"\",IF(B33<>Таблица13[[#This Row],[Дата]],Таблица13[[#This Row],[Отгруженно всего сут/м³]],\"\"))","v":""}]
[null,"2016-01-12","РБУ-1 Дрожжино","СМУ 1",null,"Щербинка,Овражная п.4",null,"Бетон В25",15,"Отказ клиента",13.5,3,"Отказ клиента, не готовы.",{"$f":"IF(Таблица13[[#This Row],[Дата]]=\"\",\"\",IF(B34<>Таблица13[[#This Row],[Дата]],Таблица13[[#This Row],[Отгруженно всего сут/м³]],\"\"))","v":""}]
[null,"2016-01-12","РБУ-1 Дрожжино","МСУ Град-1",null,"Боброво 29",null,"Раствор М200",5,"Отказ клиента",13.5,3,"Отказ клиента, не готовы.",{"$f":"IF(Таблица13[[#This Row],[Дата]]=\"\",\"\",IF(B35<>Таблица13[[#This Row],[Дата]],Таблица13[[#This Row],[Отгруженно всего сут/м³]],\"\"))","v":""}]
[null,"2016-01-12","РБУ-1 Дрожжино","МСУ 4",null,"Дрожжино 2 п 12/2 благоустройство",null,"Бетон В7,5",2,"Отказ клиента",13.5,3,"Отказ клиента, не готовы.",{"$f":"IF(Таблица13[[#This Row],[Дата]]=\"\",\"\",IF(B36<>Таблица13[[#This Row],[Дата]],Таблица13[[#This Row],[Отгруженно всего сут/м³]],\"\"))","v":""}]
[null,"2016-01-12","РБУ-1 Дрожжино","МСУ Град-1",null,"Боброво 23",null,"Раствор М200",2,"Отказ клиента",13.5,3,"Отказ клиента, не готовы.",{"$f":"IF(Таблица13[[#This Row],[Дата]]=\"\",\"\",IF(B37<>Таблица13[[#This Row],[Дата]],Таблица13[[#This Row],[Отгруженно всего сут/м³]],\"\"))","v":""}]
[null,"2016-01-12","РБУ-1 Дрожжино","МСУ 4",null,"Боброво 24",null,"Бетон В30",40,"Отказ клиента",13.5,3,"Отказ клиента, не готовы.",{"$f":"IF(Таблица13[[#This Row],[Дата]]=\"\",\"\",IF(B38<>Таблица13[[#This Row],[Дата]],Таблица13[[#This Row],[Отгруженно всего сут/м³]],\"\"))","v":""}]
[null,"2016-01-12","РБУ-1 Дрожжино","МСУ 4",null,"Дрожжино 2 к.37(школа)",null,"Бетон В25",2,"Отказ клиента",13.5,3,"Отказ клиента, не готовы.",{"$f":"IF(Таблица13[[#This Row],[Дата]]=\"\",\"\",IF(B39<>Таблица13[[#This Row],[Дата]],Таблица13[[#This Row],[Отгруженно всего сут/м³]],\"\"))","v":""}]
[null,"2016-01-12","РБУ-1 Дрожжино","МСУ 4",null,"Боброво КОС",null,"Бетон В30",3,"Отказ клиента",13.5,3,"Отказ клиента, не готовы.",{"$f":"IF(Таблица13[[#This Row],[Дата]]=\"\",\"\",IF(B40<>Таблица13[[#This Row],[Дата]],Таблица13[[#This Row],[Отгруженно всего сут/м³]],\"\"))","v":""}]
[null,"2016-01-12","РБУ-1 Дрожжино","МСУ 4",null,"Боброво водопровод",null,"Раствор М100",5,"Отказ клиента",13.5,3,"Отказ клиента, не готовы.",{"$f":"IF(Таблица13[[#This Row],[Дата]]=\"\",\"\",IF(B41<>Таблица13[[#This Row],[Дата]],Таблица13[[#This Row],[Отгруженно всего сут/м³]],\"\"))","v":""}]
[null,"2016-01-12","РБУ-1 Дрожжино","МСУ 4",null,"Боброво водопровод",null,"Бетон В15",12,"Отказ клиента",13.5,3,"Отказ клиента, не готовы.",{"$f":"IF(Таблица13[[#This Row],[Дата]]=\"\",\"\",IF(B42<>Таблица13[[#This Row],[Дата]],Таблица13[[#This Row],[Отгруженно всего сут/м³]],\"\"))","v":""}]
[null,"2016-01-12","РБУ-1 Дрожжино","МСУ 4",null,"Боброво коллектор",null,"Бетон В25",7,"Отказ клиента",13.5,3,"Отказ клиента, не готовы.",{"$f":"IF(Таблица13[[#This Row],[Дата]]=\"\",\"\",IF(B43<>Таблица13[[#This Row],[Дата]],Таблица13[[#This Row],[Отгруженно всего сут/м³]],\"\"))","v":""}]
[null,"2016-01-12","РБУ-1 Дрожжино","МСУ 4",null,"Боброво коллектор",null,"Бетон В7,5",2,"Отказ клиента",13.5,3,"Отказ клиента, не готовы.",{"$f":"IF(Таблица13[[#This Row],[Дата]]=\"\",\"\",IF(B44<>Таблица13[[#This Row],[Дата]],Таблица13[[#This Row],[Отгруженно всего сут/м³]],\"\"))","v":""}]
[null,"2016-01-12","РБУ-1 Дрожжино","МСУ 4",null,"Боброво КОС",null,"Бетон В30",5,"Отказ клиента",13.5,3,"Отказ клиента, не готовы.",{"$f":"IF(Таблица13[[#This Row],[Дата]]=\"\",\"\",IF(B45<>Таблица13[[#This Row],[Дата]],Таблица13[[#This Row],[Отгруженно всего сут/м³]],\"\"))","v":""}]
[null,"2016-01-12","РБУ-1 Дрожжино","МСУ 2",null,"Бутово Парк 21",null,"Бетон В25",8,"Отказ клиента",13.5,3,"Отказ клиента, не готовы.",{"$f":"IF(Таблица13[[#This Row],[Дата]]=\"\",\"\",IF(B46<>Таблица13[[#This Row],[Дата]],Таблица13[[#This Row],[Отгруженно всего сут/м³]],\"\"))","v":""}]
[null,"2016-01-12","РБУ-1 Дрожжино","МСУ 2",null,"Бутово Парк 22",null,"Бетон В25",20,"Отказ клиента",13.5,3,"Отказ клиента, не готовы.",{"$f":"IF(Таблица13[[#This Row],[Дата]]=\"\",\"\",IF(B47<>Таблица13[[#This Row],[Дата]],Таблица13[[#This Row],[Отгруженно всего сут/м³]],\"\"))","v":""}]
[null,"2016-01-12","РБУ-1 Дрожжино","СМУ 1",null,"Щербинка,Овражная(дорога)",null,"Бетон В7,5",15,"Отказ клиента",13.5,3,"Отказ клиента, не готовы.",{"$f":"IF(Таблица13[[#This Row],[Дата]]=\"\",\"\",IF(B48<>Таблица13[[#This Row],[Дата]],Таблица13[[#This Row],[Отгруженно всего сут/м³]],\"\"))","v":""}]
[null,"2016-01-12","РБУ-1 Дрожжино","СМУ 1",null,"Щербинка,Овражная(дорога)",null,"Бетон В15",3,"Отказ клиента",13.5,3,"Отказ клиента, не готовы.",{"$f":"IF(Таблица13[[#This Row],[Дата]]=\"\",\"\",IF(B49<>Таблица13[[#This Row],[Дата]],Таблица13[[#This Row],[Отгруженно всего сут/м³]],\"\"))","v":""}]
[null,"2016-01-13","РБУ-1 Дрожжино","СМУ 1",null,"Щербинка,Овражная  п.4",null,"Раствор М100",2,"Отказ клиента",23.5,3,"Отказ клиента, не готовы.",{"$f":"IF(Таблица13[[#This Row],[Дата]]=\"\",\"\",IF(B50<>Таблица13[[#This Row],[Дата]],Таблица13[[#This Row],[Отгруженно всего сут/м³]],\"\"))","v":23.5}]
[null,"2016-01-13","РБУ-1 Дрожжино","СМУ 1",null,"Щербинка,Овражная  п.4",null,"Бетон В25",14,"Отказ клиента",23.5,3,"Отказ клиента, не готовы.",{"$f":"IF(Таблица13[[#This Row],[Дата]]=\"\",\"\",IF(B51<>Таблица13[[#This Row],[Дата]],Таблица13[[#This Row],[Отгруженно всего сут/м³]],\"\"))","v":""}]
[null,"2016-01-13","РБУ-1 Дрожжино","МСУ Град-1",null,"Боброво 29",null,"Раствор М200",5,"Отказ клиента",23.5,3,"Отказ клиента, не готовы.",{"$f":"IF(Таблица13[[#This Row],[Дата]]=\"\",\"\",IF(B52<>Таблица13[[#This Row],[Дата]],Таблица13[[#This Row],[Отгруженно всего сут/м³]],\"\"))","v":""}]
[null,"2016-01-13","РБУ-1 Дрожжино","МСУ 4",null,"Дрожжино 2 п.12/2.благоустройство",null,"Бетон В7,5",2,"Отказ клиента",23.5,3,"Отказ клиента, не готовы.",{"$f":"IF(Таблица13[[#This Row],[Дата]]=\"\",\"\",IF(B53<>Таблица13[[#This Row],[Дата]],Таблица13[[#This Row],[Отгруженно всего сут/м³]],\"\"))","v":""}]
[null,"2016-01-13","РБУ-1 Дрожжино","МСУ 4",null,"Боброво 24",null,"Бетон В30",40,"Отказ клиента",23.5,3,"Отказ клиента, не готовы.",{"$f":"IF(Таблица13[[#This Row],[Дата]]=\"\",\"\",IF(B54<>Таблица13[[#This Row],[Дата]],Таблица13[[#This Row],[Отгруженно всего сут/м³]],\"\"))","v":""}]
[null,"2016-01-13","РБУ-1 Дрожжино","МСУ 4",null,"Дрожжино 2 к.37(школа)",null,"Бетон В25",2,"Отказ клиента",23.5,3,"Отказ клиента, не готовы.",{"$f":"IF(Таблица13[[#This Row],[Дата]]=\"\",\"\",IF(B55<>Таблица13[[#This Row],[Дата]],Таблица13[[#This Row],[Отгруженно всего сут/м³]],\"\"))","v":""}]
[null,"2016-01-13","РБУ-1 Дрожжино","МСУ 4",null,"Боброво КОС",null,"Бетон В30",3,"Отказ клиента",23.5,3,"Отказ клиента, не готовы.",{"$f":"IF(Таблица13[[#This Row],[Дата]]=\"\",\"\",IF(B56<>Таблица13[[#This Row],[Дата]],Таблица13[[#This Row],[Отгруженно всего сут/м³]],\"\"))","v":""}]
[null,"2016-01-13","РБУ-1 Дрожжино","МСУ 4",null,"Боброво водопровод",null,"Раствор М100",5,"Отказ клиента",23.5,3,"Отказ клиента, не готовы.",{"$f":"IF(Таблица13[[#This Row],[Дата]]=\"\",\"\",IF(B57<>Таблица13[[#This Row],[Дата]],Таблица13[[#This Row],[Отгруженно всего сут/м³]],\"\"))","v":""}]
[null,"2016-01-13","РБУ-1 Дрожжино","МСУ 4",null,"Боброво водопровод",null,"Бетон В15",12,"Отказ клиента",23.5,3,"Отказ клиента, не готовы.",{"$f":"IF(Таблица13[[#This Row],[Дата]]=\"\",\"\",IF(B58<>Таблица13[[#This Row],[Дата]],Таблица13[[#This Row],[Отгруженно всего сут/м³]],\"\"))","v":""}]
[null,"2016-01-13","РБУ-1 Дрожжино","МСУ 4",null,"Боброво коллектор",null,"Бетон В25",8,"Отказ клиента",23.5,3,"Отказ клиента, не готовы.",{"$f":"IF(Таблица13[[#This Row],[Дата]]=\"\",\"\",IF(B59<>Таблица13[[#This Row],[Дата]],Таблица13[[#This Row],[Отгруженно всего сут/м³]],\"\"))","v":""}]
[null,"2016-01-13","РБУ-1 Дрожжино","МСУ 4",null,"Боброво коллектор",null,"Бетон В7,5",2,"Отказ клиента",23.5,3,"Отказ клиента, не готовы.",{"$f":"IF(Таблица13[[#This Row],[Дата]]=\"\",\"\",IF(B60<>Таблица13[[#This Row],[Дата]],Таблица13[[#This Row],[Отгруженно всего сут/м³]],\"\"))","v":""}]
[null,"2016-01-13","РБУ-1 Дрожжино","МСУ 4",null,"Боброво КОС",null,"Бетон В30",4,"Отказ клиента",23.5,3,"Отказ клиента, не готовы.",{"$f":"IF(Таблица13[[#This Row],[Дата]]=\"\",\"\",IF(B61<>Таблица13[[#This Row],[Дата]],Таблица13[[#This Row],[Отгруженно всего сут/м³]],\"\"))","v":""}]
[null,"2016-01-13","РБУ-1 Дрожжино","МСУ 2",null,"Бутово Парк к.22",null,"Бетон В25",10,"Отказ клиента",23.5,3,"Отказ клиента, не готовы.",{"$f":"IF(Таблица13[[#This Row],[Дата]]=\"\",\"\",IF(B62<>Таблица13[[#This Row],[Дата]],Таблица13[[#This Row],[Отгруженно всего сут/м³]],\"\"))","v":""}]
[null,"2016-01-13","РБУ-1 Дрожжино","СМУ 1",null,"Щербинка,Овражная (дорога)",null,"Бетон В7,5",14,"Отказ клиента",23.5,3,"Отказ клиента, не готовы.",{"$f":"IF(Таблица13[[#This Row],[Дата]]=\"\",\"\",IF(B63<>Таблица13[[#This Row],[Дата]],Таблица13[[#This Row],[Отгруженно всего сут/м³]],\"\"))","v":""}]
[null,"2016-01-13","РБУ-1 Дрожжино","СМУ 1",null,"Щербинка,Овражная (дорога)",null,"Бетон В15",2,"Отказ клиента",23.5,3,"Отказ клиента, не готовы.",{"$f":"IF(Таблица13[[#This Row],[Дата]]=\"\",\"\",IF(B64<>Таблица13[[#This Row],[Дата]],Таблица13[[#This Row],[Отгруженно всего сут/м³]],\"\"))","v":""}]
[null,"2016-01-13","РБУ-1 Дрожжино","МСУ Град-1",null,"Дрожжино 2 п.32",null,"Раствор М200",2,"Отказ клиента",23.5,3,"Отказ клиента, не готовы.",{"$f":"IF(Таблица13[[#This Row],[Дата]]=\"\",\"\",IF(B65<>Таблица13[[#This Row],[Дата]],Таблица13[[#This Row],[Отгруженно всего сут/м³]],\"\"))","v":""}]
[null,"22.09.2016","РБУ-2 Люберецкий",null,null,null,null,null,null,null,null,null,null,{"$f":"IF(Таблица13[[#This Row],[Дата]]=\"\",\"\",IF(B66<>Таблица13[[#This Row],[Дата]],Таблица13[[#This Row],[Отгруженно всего сут/м³]],\"\"))","v":0}]
[null,"25.09.2016",null,null,null,null,null,null,null,null,null,null,null,{"$f":"IF(Таблица13[[#This Row],[Дата]]=\"\",\"\",IF(B67<>Таблица13[[#This Row],[Дата]],Таблица13[[#This Row],[Отгруженно всего сут/м³]],\"\"))","v":0}]

{"sheet":"Причина отказа","index":1,"n_rows":5,"n_cols":2,"rows_kept":5,"cut":false,"hidden":false,"merged":[]}
[]
[null,"Причина отказа"]
[null,"Наш отказ"]
[null,"Отказ объекта"]
[null,"Перенос объема"]

{"sheet":"Продукция","index":2,"n_rows":19,"n_cols":2,"rows_kept":19,"cut":false,"hidden":false,"merged":[]}
[]
[null,"Продукция"]
[null,"Бетон В10"]
[null,"Бетон В12,5"]
[null,"Бетон В15"]
[null,"Бетон В20"]
[null,"Бетон В22,5"]
[null,"Бетон В25"]
[null,"Бетон В30"]
[null,"Бетон В35"]
[null,"Бетон В40"]
[null,"Бетон В7,5"]
[null,"Раствор М100"]
[null,"Раствор М150"]
[null,"Раствор М200"]
[null,"Раствор М300"]
[null,"Раствор М50"]
[null,"Раствор М75"]
[null,"Цементное молочко"]

{"sheet":"Контрагент","index":3,"n_rows":35,"n_cols":2,"rows_kept":35,"cut":false,"hidden":false,"merged":[]}
[]
[null,"Контрагент"]
[null,"А-Строй"]
[null,"Белый Крест"]
[null,"Бетомакс"]
[null,"Боброво"]
[null,"Бутово-Парк"]
[null,"Гамма"]
[null,"Гарант"]
[null,"Гусстрой"]
[null,"ДЗС ГРУПП"]
[null,"ДПУ"]
[null,"Кинкрос"]
[null,"КНАК"]
[null,"Компания ФМ"]
[null,"Мортон"]
[null,"Мосстрой-94"]
[null,"МР-Строй"]
[null,"МСК"]
[null,"МСУ 2"]
[null,"МСУ 4"]
[null,"МСУ 5"]
[null,"МСУ 6"]
[null,"МСУ 7"]
[null,"МСУ Град-1"]
[null,"РДА-Строй"]
[null,"РегионКапСтрой"]
[null,"СМУ 1"]
[null,"СМУ 2"]
[null,"СМУ 7"]
[null,"ТЭКС"]
[null,"УИР-163"]
[null,"Финпроект"]
[null,"ФМ Компания"]
[null,"ЮНИТЕК"]

{"sheet":"Проект","index":4,"n_rows":8,"n_cols":2,"rows_kept":8,"cut":false,"hidden":false,"merged":[]}
[]
[null,"Проект"]
[null,"Бетомакс"]
[null,"Боброво "]
[null,"Бутово-Парк"]
[null,"Дрожжино-2"]
[null,"Милиц.поселок"]
[null,"Щербинка, Новомосковский"]

{"sheet":"Позиция","index":5,"n_rows":25,"n_cols":2,"rows_kept":25,"cut":false,"hidden":false,"merged":[]}
[]
[null,"Позиция"]
[null,"Автомобильная дорога"]
[null,"блоки"]
[null,"Коллектор"]
[null,"Овражная 4"]
[null,"Овражная дорога"]
[null,"поз. 1"]
[null,"поз. 1,2 (пруд)"]
[null,"поз. 10"]
[null,"поз. 12.1"]
[null,"поз. 14.1"]
[null,"поз. 2 \"А\""]
[null,"поз. 21"]
[null,"поз. 22"]
[null,"поз. 24"]
[null,"поз. 25"]
[null,"поз. 26"]
[null,"поз. 29"]
[null,"поз. 30"]
[null,"поз. 33"]
[null,"поз. 34"]
[null,"поз. 57"]
[null,"с/в"]
[null,"ул. Таллалихина"]

{"sheet":"Завод","index":6,"n_rows":4,"n_cols":2,"rows_kept":4,"cut":false,"hidden":false,"merged":[]}
[]
[null,"Завод"]
[null,"РБУ-1 Дрожжино"]
[null,"РБУ-2 Люберецкий"]